Cogmind - Beta 13 @@@ ROGUE MODE // 2024.04.16 @ 21:49:41 Player: Zedx Result: Destroyed by P-60 Hacker with Shock Rifle Performance ------------- Evolutions (3) 1500 Regions Visited (4) 800 Robots Destroyed (69) 345 Value Destroyed (2055) 2055 Prototype IDs (2) 40 Alien Tech Used (0) 0 Bonus (12) 12 TOTAL SCORE: 4752 Bonus ------- High Alert Combat Kills 12 Cogmind --------- Core Integrity 0/700 Matter 295/300 Energy 69/100 System Corruption 11% Temperature Cool (0) Movement Walking (260) Ox2 Location -7/Factory Parts ------- > --- POWER (2) -------- (None) > --- PROPULSION (4) --- Aluminum Leg > --- UTILITY (5) ------ Medium Storage Unit Medium Storage Unit Advanced Terrain Scan Processor Target Analyzer > --- WEAPON (2) ------- Powered Hammer > --- INVENTORY (10) --- Target Analyzer Particle Charger Tractor Beam Arc Projector EM Pulse Cannon Peak State ------------ > --- POWER ------------ Improved Ion Engine Deuterium Engine > --- PROPULSION ------- Titanium Leg Titanium Leg Armored Huge Wheel > --- UTILITY ---------- Cooling System Medium Storage Unit Target Analyzer Energy Filter Hardened Light Armor Plating > --- WEAPON ----------- Improved EM Pulse Cannon Heavy Ion Cannon > --- INVENTORY -------- Advanced Treads Aluminum Leg Titanium Leg Cooling System Medium Storage Unit Field Laser Field Laser EM Pulse Cannon EM Pulse Cannon Rocket Launcher [Rating: 41] Favorites ----------- Power Deuterium Engine Engine Deuterium Engine Power Core Light Nuclear Core Propulsion Aluminum Leg Treads Light Treads Leg Aluminum Leg Wheel Armored Huge Wheel Hover Unit Hover Unit Flight Unit VTOL Module Utility Medium Storage Unit Device Heat Sink Storage Medium Storage Unit Processor Target Analyzer Protection Hardened Light Armor Plating Weapon Beam Rifle Energy Gun Beam Rifle Energy Cannon Light EM Pulse Cannon Ballistic Cannon Improved Light Cannon Launcher Mini Grenade Launcher Impact Weapon Powered Hammer Build | -11 -10 -9 -8 -7 ------- Run | Yrd Mat Mat Mat Fac Slots Evolved 6 | . . 2 2 2 Power 1 | . . . . 1 Propulsion 2 | . . 1 1 . Utility 3 | . . 1 1 1 Weapon . | . . . . . Parts Attached 71 | 7 12 18 9 25 Power 7 | 1 1 3 . 2 Engine 6 | 1 1 3 . 1 Core 1 | . . . . 1 Reactor . | . . . . . Propulsion 21 | 2 2 6 4 7 Treads 4 | . . 2 1 1 Leg 14 | 2 2 2 3 5 Wheel 1 | . . . . 1 Hover 1 | . . 1 . . Flight 1 | . . 1 . . Utility 18 | 1 5 4 2 6 Device 8 | . 2 2 1 3 Storage 5 | 1 2 1 . 1 Processor 4 | . 1 1 . 2 Hackware . | . . . . . Protection 1 | . . . 1 . Artifact . | . . . . . Weapon 25 | 3 4 5 3 10 Energy Gun 13 | 3 3 3 1 3 Energy Cannon 8 | . . 2 1 5 Ballistic Gun . | . . . . . Ballistic Cannon 1 | . . . 1 . Launcher 2 | . 1 . . 1 Special Weapon . | . . . . . Impact Weapon 1 | . . . . 1 Slashing Weapon . | . . . . . Piercing Weapon . | . . . . . Special Melee Weapon . | . . . . . Unidentified Prototypes . | . . . . . Corrupted Parts 1 | . . . . 1 System Corruption 9 | . . . . 9 Parts Lost 31 | . 2 8 . 21 Power 6 | . 1 2 . 3 Propulsion 11 | . . 4 . 7 Utility 5 | . . 1 . 4 Weapon 9 | . 1 1 . 7 Highest Loss Streak 8 | . 2 4 . 8 To Critical Strikes . | . . . . . Average Slot Usage (%) 89 | . 99 87 96 73 Engine 11 | . 13 10 9 8 Treads 6 | . . 11 9 1 Leg 15 | . 28 7 25 10 Flight 1 | . . 3 . . Device 11 | . 11 12 9 8 Storage 11 | . 13 11 9 7 Processor 7 | . 2 8 9 10 Protection 1 | . . . 7 4 Energy Gun 15 | . 27 14 9 2 Energy Cannon 5 | . . 6 7 9 Naked Turns . | . . . . . Heaviest Build 51 | 12 22 27 35 51 Greatest Support 51 | 20 20 40 51 51 Greatest Overweight (x) 8 | 1 1 8 1 7 Average Overweight (x) . | . . . . 1 Largest Inventory Capacity 15 | 8 15 10 10 10 Average Capacity 9 | 7 9 10 10 10 Most Carried 10 | 5 10 10 10 10 Average Carried 9 | 3 9 9 9 8 Final Capacity 10 | 8 10 10 10 10 Final Carried 10 | 5 10 10 10 5 Class Distribution -------------------- 95% | Mutant 4% | Scavenger-Mutant Dominant Class ---------------- Mutant | -10/Materials Mutant | -9/Materials Mutant | -8/Materials Mutant | -7/Factory Resources | -11 -10 -9 -8 -7 ----------- Run | Yrd Mat Mat Mat Fac Matter Collected 986 | 212 255 190 114 215 Remotely . | . . . . . Salvage Created 2636 | . 475 889 593 679 Parts 104 | . 30 45 21 8 Haulers Intercepted 1 | . . 1 . . Recyclers Shooed 1 | . . 1 . . Parts Field Recycled . | . . . . . Retrieved Matter . | . . . . . Parts Self-Destructed . | . . . . . Prevented . | . . . . . Kills | -11 -10 -9 -8 -7 ------- Run | Yrd Mat Mat Mat Fac Combat Hostiles Destroyed 56 | . 12 19 13 12 Guns 20 | . 6 12 2 . Cannons 21 | . . 4 10 7 AOE 7 | . 5 1 . 1 Classes Destroyed 8 | . 4 3 . 1 Worker 1 | . . 1 . . Hauler 1 | . . 1 . . Recycler 3 | . 1 1 . 1 Watcher 8 | . 3 4 1 . Swarmer 16 | . 6 6 4 . Grunt 31 | . 6 8 6 11 Duelist 1 | . . . . 1 Sentry 8 | . . 5 3 . Best Kill Streak 5 | . 5 3 5 2 Combat Bots Only 5 | . 5 3 5 2 Max Kills in Single Turn 3 | . 3 1 1 1 Gunslinging . | . . . . . Exploded 3 | . 3 1 . 1 Melee . | . . . . . Uniques/NPCs Destroyed . | . . . . . Combat | -11 -10 -9 -8 -7 -------- Run | Yrd Mat Mat Mat Fac Hostile Shots Fired 445 | . 56 111 67 211 Missed 101 | . 9 27 15 50 Damage Taken 5051 | . 547 1015 752 2737 Core 1218 | . 159 228 123 708 Absorbed by Shields . | . . . . . Core Remaining (%) 64 | 100 36 43 77 . Volleys Fired 219 | . 40 69 51 59 Largest 2 | . 2 2 2 2 Hottest 134 | . 112 112 126 134 Shots Fired 364 | . 61 128 90 85 Gun 220 | . 60 108 48 4 Cannon 138 | . . 19 42 77 Launcher 6 | . 1 1 . 4 Special . | . . . . . Kinetic 6 | . . . 6 . Thermal 256 | . 48 108 48 52 Explosive 6 | . 1 1 . 4 Electromagnetic 96 | . 12 19 36 29 Robot Hit Streak 13 | . 8 12 11 13 Robot Miss Streak 8 | . 3 8 3 2 Penetration Max . | . . . . . Secondary Targets 1 | . . 1 . . Max Gunslinging Chain 1 | . . 1 . . Shots Hit Robots 253 | . 38 83 60 72 Core Hits 95 | . 21 31 21 22 Critical Kills 1 | . . . . 1 Critical Parts Destroyed 2 | . . . . 2 Critical Strikes 29 | . 6 11 7 5 Burn 19 | . 6 10 3 . Meltdown 1 | . . . . 1 Corrupt 7 | . . 1 4 2 Smash 2 | . . . . 2 Melee Attacks 4 | . . . . 4 Impact 4 | . . . . 4 Slashing . | . . . . . Piercing . | . . . . . Sneak Attacks . | . . . . . Combat Hostiles . | . . . . . Follow-up Attacks . | . . . . . Damage Inflicted 5740 | . 792 1453 1365 2130 Guns 2051 | . 573 958 474 46 Cannons 2828 | . . 326 800 1702 Explosions 739 | . 217 161 91 270 Melee 107 | . . . . 107 Ramming 15 | . 2 8 . 5 Kinetic 108 | . . . 108 . Thermal 3428 | . 550 1060 565 1253 Explosive 319 | . 131 59 . 129 Electromagnetic 1763 | . 109 326 692 636 Impact 107 | . . . . 107 Slashing . | . . . . . Piercing . | . . . . . Highest Corruption 11 | . 2 . . 11 Average Corruption 2 | . 2 . . 9 Corruption Purged . | . . . . . Corruption Blocked . | . . . . . Effects 16 | . 14 . . 2 Message Errors 2 | . 2 . . . Matter Fused 6 | . 6 . . . Heat Flow Errors 3 | . 2 . . 1 Energy Discharges 1 | . 1 . . . Parts Fused 1 | . 1 . . . Data Loss (minor) 2 | . 1 . . 1 Alerts 1 | . 1 . . . Overload Shots . | . . . . . Overflow Damage 176 | . 38 . 34 104 Projectiles 68 | . . . 18 50 Explosions 54 | . 38 . 16 . Melee 54 | . . . . 54 Knockbacks 4 | . 1 . 2 1 Impact 2 | . 1 . . 1 Kinetic 2 | . . . 2 . Secondary . | . . . . . Self-Inflicted Damage 146 | . 31 15 38 62 Shots 5 | . 1 1 1 2 Rammed 6 | . . 4 . 2 Targets Rammed 9 | . 1 4 . 4 Kicked 3 | . 1 . . 2 Crushed . | . . . . . Highest Temperature 454 | . 454 105 216 236 Average Temperature 83 | . 176 30 51 62 Received Heat Transfer 2193 | . 252 321 279 1341 Effects 3 | . 3 . . . Energy Bleed 1 | . 1 . . . Interference 1 | . 1 . . . Matter Decay 1 | . 1 . . . Siege Activations . | . . . . . Robots Corrupted 4 | . . . 1 3 Combat Hostiles 4 | . . . 1 3 Parts Fried 13 | . . 3 4 6 Impact Corruptions 4 | . . . . 4 Robots Melted 4 | . 1 2 . 1 Combat Hostiles 4 | . 1 2 . 1 Parts Melted 24 | . 5 16 2 1 Heat Transferred 8135 | . 1728 3382 1358 1667 Parts Sabotaged . | . . . . . Parts Stolen . | . . . . . Parts Stripped . | . . . . . Power Chain Reactions 6 | . 1 2 1 2 Alert | -11 -10 -9 -8 -7 ------- Run | Yrd Mat Mat Mat Fac Peak Influence 422 | . 159 219 422 276 Initial 191 | . . 34 34 191 Average 95 | . 48 80 213 152 Maximum Alert Level 2 | . . 1 2 1 Low Security (%) 91 | 100 100 96 47 90 Level 1 7 | . . 3 46 9 Level 2 . | . . . 6 . Level 3 . | . . . . . Level 4 . | . . . . . Level 5 . | . . . . . High Security . | . . . . . Max Security . | . . . . . Squads Dispatched 10 | . 2 2 3 3 Investigation 2 | . . 1 1 . Extermination 1 | . . . . 1 Reinforcement 5 | . 2 1 . 2 Assault . | . . . . . Garrison 2 | . . . 2 . Intercept . | . . . . . Searches Triggered . | . . . . . Construction Impeded 1 | . . . . 1 Haulers Reinforced . | . . . . . Active Scanning Responses . | . . . . . Cargo Convoy Interrupts . | . . . . . Stealth | -11 -10 -9 -8 -7 --------- Run | Yrd Mat Mat Mat Fac Distress Signals 5 | . . 4 1 . Communications Jammed . | . . . . . Distress Signals . | . . . . . Times Spotted 93 | . 21 27 27 18 Peak Tracking Total 6 | . 6 4 6 4 Tactical Retreats 11 | . 1 . 6 4 Traps | -11 -10 -9 -8 -7 ------- Run | Yrd Mat Mat Mat Fac Traps Triggered 4 | . 1 . 1 2 Indirectly . | . . . . . Trap Hack Attempts . | . . . . . Triggered . | . . . . . Disarmed . | . . . . . Reprogrammed . | . . . . . Reused . | . . . . . Traps Extracted . | . . . . . Installed . | . . . . . Triggered . | . . . . . Machines | -11 -10 -9 -8 -7 ---------- Run | Yrd Mat Mat Mat Fac Machines Disabled 2 | . 1 . 1 . Max in Single Turn 1 | . 1 . 1 . Machines Repaired . | . . . . . Machines Dismantled . | . . . . . Machines Sabotaged . | . . . . . Overloaded Fab Kills . | . . . . . Hacking | -11 -10 -9 -8 -7 --------- Run | Yrd Mat Mat Mat Fac Machines Accessed 17 | . 6 9 1 1 Terminals 13 | . 5 7 . 1 Fabricators . | . . . . . Repair Stations 2 | . . 1 1 . Recycling Units 1 | . 1 . . . Scanalyzers 1 | . . 1 . . Garrison Access . | . . . . . Total Hacks 44 | . 14 27 2 1 Successful 22 | . 6 14 1 1 Failed 22 | . 8 13 1 . Catastrophic 4 | . 3 1 . . Database Lockouts . | . . . . . Manual 13 | . 7 6 . . Terminals 36 | . 13 22 . 1 Fabricators . | . . . . . Repair Stations 5 | . . 3 2 . Recycling Units 1 | . 1 . . . Scanalyzers 2 | . . 2 . . Garrison Access . | . . . . . Terminal Hacks 16 | . 5 10 . 1 Part Schematic 1 | . 1 . . . Robot Analysis 1 | . . 1 . . Prototype ID Bank 1 | . . 1 . . Open DSF 1 | . . . . 1 Fabricator Index 1 | . . 1 . . Alert Level 3 | . 1 2 . . Unreport Threat 1 | . 1 . . . Locate Traps 1 | . 1 . . . Patrol Status 1 | . . 1 . . Transport Status 1 | . . 1 . . Reinforcement Status 1 | . . 1 . . Zone Layout 3 | . 1 2 . . Fabricator Hacks . | . . . . . Repair Station Hacks 3 | . . 2 1 . Scan Component 3 | . . 2 1 . Recycling Unit Hacks 1 | . 1 . . . Report Inventory 1 | . 1 . . . Scanalyzer 2 | . . 2 . . Insert Component 1 | . . 1 . . Analyze 1 | . . 1 . . Garrison Access Hacks . | . . . . . Unauthorized Hacks . | . . . . . Terminals . | . . . . . Fabricators . | . . . . . Repair Stations . | . . . . . Recycling Units . | . . . . . Scanalyzers . | . . . . . Garrison Access . | . . . . . Data Cores Recovered . | . . . . . Used . | . . . . . Hacking Detections 15 | . 5 9 1 . Full Trace Events 1 | . . 1 . . Feedback Events . | . . . . . Feedback Blocked . | . . . . . Robot Schematics Acquired . | . . . . . Robots Built . | . . . . . Authchips . | . . . . . Time . | . . . . . Total Robot Build Rating . | . . . . . Part Schematics Acquired 2 | . 1 1 . . Parts Built . | . . . . . Authchips . | . . . . . Time . | . . . . . Total Part Build Rating . | . . . . . Parts Repaired . | . . . . . Time . | . . . . . Parts Recycled . | . . . . . Recycled Matter . | . . . . . Retrieved Matter . | . . . . . Retrieved Components . | . . . . . Parts Scanalyzed 1 | . . 1 . . Part Schematics Acquired 1 | . . 1 . . Parts Damaged . | . . . . . Bothacking | -11 -10 -9 -8 -7 ------------ Run | Yrd Mat Mat Mat Fac Used RIF Installer . | . . . . . Robots Hacked . | . . . . . Non-combat . | . . . . . Combat . | . . . . . Robot Hacks Applied . | . . . . . Relay Couplers Released . | . . . . . Fabnet Peak Effective % . | . . . . . Robots Rewired . | . . . . . Allies Hacked . | . . . . . Hacks Repelled . | . . . . . Allies | -11 -10 -9 -8 -7 -------- Run | Yrd Mat Mat Mat Fac Total Allies . | . . . . . Largest Group . | . . . . . Highest-Rated Group . | . . . . . Highest-Rated Ally . | . . . . . Total Orders . | . . . . . Ally Attacks . | . . . . . Total Damage . | . . . . . Kills . | . . . . . Allies Corrupted . | . . . . . Allies Melted . | . . . . . Intel | -11 -10 -9 -8 -7 ------- Run | Yrd Mat Mat Mat Fac Robot Analysis Total 1 | . . 1 . . Derelict Logs Recovered . | . . . . . Drone Launches . | . . . . . Drone Recoveries . | . . . . . Exploration | -11 -10 -9 -8 -7 ------------- Run | Yrd Mat Mat Mat Fac Turns Passed 5780 | 82 1574 2619 600 905 Spaces Moved 2703 | 61 815 1056 281 490 Core 108 | 15 . 79 . 14 Treads 751 | . . 720 31 . Legs 1411 | 46 815 224 250 76 Wheels 400 | . . . . 400 Hover 33 | . . 33 . . Flight . | . . . . . Fastest Speed 50 | 50 120 120 130 100 Average Speed 166 | 105 163 197 133 132 Slowest Speed 450 | 190 190 450 240 400 Overloaded Moves . | . . . . . Propulsion Burnouts . | . . . . . Robots Hopped . | . . . . . Cave-ins Triggered . | . . . . . Exploration Rate (%) 43 | 3 96 76 28 13 Regions Visited 4 Branch Regions . Pre-discovered Areas . | . . . . . Known Exits Taken . | . . . . . Unknown Exits Taken 4 | 1 1 1 1 . Scrap Searched . | . . . . . Spaces Dug . | . . . . . Terrain Destroyed 87 | . 14 14 8 51 Melee . | . . . . . Projectile 4 | . . . . 4 AOE 83 | . 14 14 8 47 Terrain Rammed . | . . . . . Walls Destroyed . | . . . . . Machines Disabled . | . . . . . Actions | -11 -10 -9 -8 -7 --------- Run | Yrd Mat Mat Mat Fac Total 3618 | 79 1002 1464 421 652 Wait 453 | . 87 272 57 37 Move 2699 | 60 814 1055 280 490 Hop . | . . . . . Pick Up 103 | 11 30 28 13 21 Fast Attach . | . . . . . Attach 51 | 7 6 12 5 21 Detach 5 | 1 1 . . 3 Swap 20 | . 6 6 4 4 Drop 55 | . 17 18 11 9 Fire 219 | . 40 69 51 59 Melee 4 | . . . . 4 Ram 5 | . . 3 . 2 Kick 3 | . 1 . . 2 Crush 1 | . . 1 . . Escape Stasis . | . . . . . Rewire . | . . . . . Trap . | . . . . . Miscellaneous . | . . . . . Route ------- -11/Scrapyard -10/Materials (discovered 5 exits: *Mat x3 / [*Min x2]) -9/Materials (discovered 3 exits: *Mat / [*Min] / [*Sto]) -8/Materials -7/Factory History --------- Turn | Location | Event 7 | -11/Scrapyard | Discovered new exit (range 15) 83 | -11/Scrapyard | Entered Materials 318 | -10/Materials | Build established: Mutant 381 | -10/Materials | Discovered new exit (range 14) 385 | -10/Materials | Discovered new exit (range 14) 746 | -10/Materials | Discovered new exit (range 5) 971 | -10/Materials | Discovered new exit (range 5) 1071 | -10/Materials | Core integrity fell below 50% 1174 | -10/Materials | Discovered new exit (range 15) 1583 | -10/Materials | Derelicts attacked the area 1657 | -10/Materials | Entered another Materials area 1657 | -9/Materials | Evolved 2 slots: Propulsion x1, Utility x1 1986 | -9/Materials | Lost 4 parts (2p1n1w) 2182 | -9/Materials | Lost 3 parts (2n1u) 2646 | -9/Materials | Discovered new exit (range 12) 2749 | -9/Materials | Discovered new exit (range 5) 2788 | -9/Materials | Core integrity fell below 50% 3884 | -9/Materials | Discovered new exit (range 15) 4276 | -9/Materials | Entered another Materials area 4276 | -8/Materials | Evolved 2 slots: Propulsion x1, Utility x1 4489 | -8/Materials | Discovered new exit (range 16) 4718 | -8/Materials | Garrison activated, responded to threat 4876 | -8/Materials | Entered Factory 4876 | -7/Factory | Evolved 2 slots: Power x1, Utility x1 5503 | -7/Factory | Lost 8 parts (2p3n2u1w) 5562 | -7/Factory | Core integrity fell below 50% 5594 | -7/Factory | Lost 5 parts (2n1u2w) 5678 | -7/Factory | Core integrity fell below 20% 5708 | -7/Factory | Lost 5 parts (1p2n2w) 5769 | -7/Factory | System corruption reached 10% 5781 | -7/Factory | Destroyed by P-60 Hacker with Shock Rifle Last Messages --------------- 05731_ K-01 Serf collects debris. 05746_ EM Pulse Cannon destroyed. 05751_ Acquired Powered Hammer. 05764_ System corrupted: Heat flow error (+115). 05768_ Cooling System destroyed. 05769_ G-47 Trooper suffers critical hit (Smash). 05769_ Destroyed Particle Gun. 05769_ Destroyed Aluminum Leg. 05769_ G-47 Trooper system corrupted by crushing effect. 05769_ G-47 Trooper knocked back. 05770_ G-47 Trooper system terminally corrupted. 05770_ Lgt. Nuclear Core fried. 05770_ Imp. Heat Sink fried. 05771_ Particle Gun destroyed. 05774_ P-60 Hacker suffers critical hit (Smash). 05774_ Destroyed Gravmag System. 05774_ P-60 Hacker system corrupted by crushing effect. Map ----- +----------------------------------------------------+ | ????????????????????????????????????# ????=#?????? | | ????????????????????????????????????# ???? #?????? | | ??????????????????????############### ???" #?????? | | ??????????????????????# ## ??"" #?????? | | ??????????????????????# ## """" ####### | | ??????????????????????# ## """" # | | ??????????????????????# ## """" # """ ] | | ??????????????????????# ## """" # """ | | ??????????????????????# / ## """" # """ | | ??????????????????????# ## # ! | | ??????????????????????# ## # ! | | ??????????????????????# ## % "#+"## | | ??????????????????????# #### " # # | | ??????????????????????# + % | | ??????????????????????# # ## | | ?????????????????##########+#+###### ##### | | ?????????????????# # #??## | | ?????????????????# # ######## #??# | | ?????????????????# + #??????# #??# | | ?????????????????# # ########+# #??#"" | | ?????????????????# "" + # # #??#"" | | ?????????????????# "" # # """ # #??#"" | | ?????????????????# """ # # """ # #??# | | ?????????????????# """ ; # """ !# ###### | | ?????????????????# """ # # # | | ?????????????????# p @; % # """ # | | ?????????????????# [!! # % + """ # """ | | ?????????????????# [ # # """ # ""F"" | | ?????????????????# !!/ # # = # "" "" | | ?????????????????# # ########## | | ?????????????????# # [ ########## | | ?????????????????# # [% !! | | ?????????????????# + !![ | | ?????????????????# ! # !! | | ?????????????????########## | | ??????????????????????????# | | ??????????????????????????# ############%"#### | | ??????????????????????????# #??????????#%##?## | | ??????????????????????????# #??????????# #??# | | ??????????????????????????# ############+#??# | | ?????????????????????????## # % #??# | | ?????????????????????????# # #??# | | ?????????????????????????#T # """""" #??# | | ?????????????????????????## # """""" #??# | | ??????????????????????????# # """""" #??# | | ??????????????????????????# # """""" #??# | | ??????????????????????????# # #### | | ??????????????????????????# / """""" !+ [+ | | ??????????????????????????# # """""" ####% | | ??????????????????????????# # """""" #??# | +----------------------------------------------------+ Best States ------------- Heat Dissipation 56 Energy Generation 21 Energy Capacity 440 Matter Stores 300 Matter Capacity 300 Sight Range 18 Robot Scan Range 14 Terrain Scan Density 210 Armor Coverage 150 Evasion (%) 55 Target Analysis 5 Recoil Reduction 2 Energy Filtering 30 Item Schematics ----------------- Aluminum Leg | -10/Materials | Hacked Med. Storage Unit | -9/Materials | Scanalyzed Robot Schematics ------------------ None Fabricated ------------ Nothing Alien Tech Used ----------------- None Achievements -------------- Power Corrupts Challenges ------------ None Game ------ Seed SensorHelicalSlayer Manual? 0 Play Time 01:04:15 Cumulative 12.0 hours Start 2024.04.16 @ 20:44:16 End 2024.04.16 @ 21:49:41 Sessions 1 Manual Loads 0 Difficulty Rogue Special Mode None Game No. 16 Rogue 16 Adventurer 0 Explorer 0 Win Type - Total 0 Types 0/0/0/0/0/0/0/0/0 Lore% 17 Gallery% 17 Achievement% 14 Wizard Run 0 Options --------- Layout 1 ASCII 0 Keyboard 1 Movement Numpad Keybinds 0 Fullscreen 1 Font 24/Smallcaps Map View 50x35 Zoom Use 0% Tactical HUD 1 Map Filters NONE Filters NONE Steam 1 RUN: ee9ad452-40db-467c-8df3-9a6a2e965baa